bitfinex/quotes_ETHUSD_20220106
["timestamp","ask_amount","ask_price","bid_price","bid_amount"]
[1641435370788,1.645,3507.8,3507.6,0.00113684]
[1641435370992,1.945,3507.8,3507.6,0.00113684]
[1641435371189,1.645,3507.8,3507.6,0.00113684]
[1641435371389,2.3579,3507.8,3507.6,0.00113684]
[1641435372288,2.3579,3507.8,3507.7,0.00108127]
[1641435372490,2.6579,3507.8,3507.7,0.00108127]
[1641435372889,1.945,3507.8,3507.7,0.00108127]
[1641435374536,4.17177219,3507.8,3507.7,0.00108127]
[1641435376937,4.0,3507.7,3507.6,0.00113684]
[1641435377137,7.54212351,3507.7,3507.6,0.00113684]
[1641435377386,3.54212351,3507.7,3507.6,0.00113684]
[1641435380381,2.85,3507.6,3507.5,4.74e-05]
[1641435380582,6.32422077,3507.6,3507.5,4.74e-05]
[1641435380783,6.62422077,3507.6,3507.5,4.74e-05]
[1641435380984,3.77422077,3507.6,3507.5,4.74e-05]
[1641435381633,1.645,3507.6,3507.5,4.74e-05]
[1641435381833,3.71241214,3507.6,3507.5,4.74e-05]
[1641435382033,3.7,3507.5,3507.1,2.8592001]
[1641435382232,1.36153606,3507.2,3507.1,2.8592001]
[1641435382432,1.70653606,3507.2,3507.1,2.8592001]
[1641435382631,1.345,3507.2,3507.1,2.8592001]
[1641435382834,0.345,3507.2,3507.1,2.8592001]
[1641435383033,0.345,3507.7,3507.1,2.8592001]
[1641435383233,3.2015,3508.2,3507.4,1.26879356]
[1641435383234,0.345,3508.1,3507.4,1.26879356]
[1641435383635,3.2015,3508.2,3507.4,1.26879356]
[1641435383636,0.00113684,3507.8,3507.4,1.56879356]
[1641435383834,0.00113684,3507.8,3507.5,1.5180317]
[1641435386480,0.00113684,3507.8,3507.1,1.79593795]
[1641435386481,0.20325771,3507.4,3507.1,1.79593795]
[1641435386783,0.345,3507.3,3507.1,1.79593795]
[1641435387177,0.645,3507.3,3507.1,1.79593795]
[1641435387577,1.66023602,3507.2,3507.1,1.79593795]
[1641435387778,0.645,3507.2,3507.1,1.79593795]
[1641435391040,0.345,3507.2,3507.1,1.79593795]
[1641435391641,1.20325771,3507.4,3507.1,1.79593795]
[1641435391642,0.20325771,3507.4,3507.1,1.79593795]
[1641435393384,0.345,3507.3,3507.1,1.79593795]
[1641435393585,0.345,3507.3,3507.2,0.00101534]
[1641435396936,0.345,3507.3,3507.1,0.5641855]
[1641435397636,4.145,3507.3,3507.1,0.5641855]
[1641435398038,1.0,3507.2,3507.1,0.5641855]
[1641435398437,3.8,3507.3,3507.1,0.5641855]
[1641435401484,3.8,3507.3,3507.1,0.8641855]
[1641435401683,0.00284212,3507.7,3507.1,0.8641855]
[1641435401684,0.00284212,3507.7,3507.2,8.2]
[1641435401883,0.00284212,3507.7,3507.3,0.7125735]
[1641435402083,0.0022737,3507.6,3507.3,1.0125735]
[1641435402288,7.37e-05,3507.6,3507.4,1.4350844]
[1641435402584,0.00170527,3507.5,3507.4,9.92569916]
[1641435402983,0.194957,3508.8,3507.9,0.7125604]
[1641435402984,0.00632636,3508.7,3507.9,0.7125604]
[1641435403384,0.00575793,3508.6,3508.2,1.39601675]
[1641435403837,0.00518951,3508.5,3508.2,1.39601675]
[1641435404237,0.00462108,3508.4,3508.2,1.39601675]
[1641435404637,0.00405266,3508.3,3508.0,1.14762139]
[1641435405038,0.00348424,3508.2,3508.0,1.14762139]
[1641435405438,0.00291581,3508.1,3508.0,1.14762139]
[1641435409488,0.00291581,3508.1,3508.0,6.19762139]
[1641435410597,0.00291581,3508.1,3508.0,11.91186609]
[1641435410796,0.00291581,3508.1,3508.0,9.49762139]
[1641435411433,7.281e-05,3508.8,3508.1,8.1529]
[1641435411633,0.01234938,3510.4,3508.4,0.7123245]
[1641435411836,2.84938,3510.9,3508.6,8.15]
[1641435411837,3.31466112,3510.2,3508.6,8.15]
[1641435412038,3.31466112,3510.2,3508.7,17.74919882]
[1641435412039,2.37336112,3510.2,3508.7,17.74919882]
[1641435412236,0.00795792,3510.1,3508.8,0.13819997]
[1641435412438,0.00795792,3510.1,3508.8,0.19442525]
[1641435412741,0.345,3510.9,3509.1,0.4273]
[1641435412941,0.345,3510.9,3509.0,1.4244014]
[1641435413138,0.345,3510.9,3509.1,0.6]
[1641435413139,0.0127208,3510.3,3509.1,0.6]
[1641435413538,0.00852635,3510.2,3509.1,0.3]
[1641435413740,0.00852635,3510.2,3509.4,1.41769507]
[1641435413741,1.37652127,3509.9,3509.4,1.41769507]
[1641435414043,0.00625265,3509.8,3508.8,0.13819997]
[1641435414440,0.00568423,3509.7,3508.8,0.13819997]
[1641435414879,0.00511581,3509.6,3508.8,1.15355424]
[1641435415386,0.345,3510.0,3508.9,1.42869894]
[1641435415387,0.00454738,3509.5,3508.9,1.42869894]
[1641435415781,0.00397896,3509.4,3508.9,1.42869894]
[1641435415983,0.00397896,3509.4,3509.0,0.7123311]
[1641435416186,0.00397896,3509.4,3508.9,1.42869894]
[1641435416187,0.34841054,3509.3,3508.5,0.00113685]
[1641435416385,0.345,3509.2,3508.5,0.00113685]
[1641435416583,0.64784211,3509.2,3508.0,0.00397897]
[1641435416784,0.00227369,3509.1,3508.0,0.00397897]
[1641435416983,0.345,3509.0,3507.8,0.00511582]
[1641435417185,0.34670527,3509.0,3507.4,0.00738951]
[1641435417385,0.34670527,3509.0,3508.9,1.50553259]
[1641435417386,0.345,3509.0,3508.9,1.50553259]
[1641435417687,0.34670527,3509.0,3508.9,1.50553259]
[1641435422889,0.00170527,3509.0,3508.9,1.80553259]
[1641435423085,0.00170527,3509.0,3508.9,1.50553259]
[1641435423288,0.00170527,3509.0,3508.9,5.35553259]
[1641435423887,0.00170527,3509.0,3508.9,6.83437034]
[1641435424087,0.00170527,3509.0,3508.9,2.98437034]
[1641435424487,5.00170527,3509.0,3508.9,2.98437034]
[1641435424687,2.86590527,3509.0,3508.9,10.63437034]
[1641435424888,1.44160527,3509.0,3508.9,10.93437034]
[1641435425090,0.345,3510.4,3509.5,0.71225]
[1641435425488,0.0073895,3510.3,3509.5,0.71225]
[1641435425686,0.0073895,3510.3,3509.6,2.73592386]
[1641435425890,0.00682108,3510.2,3509.6,2.73592386]
[1641435426335,0.00625265,3510.1,3509.6,2.73592386]
[1641435426736,0.00568423,3510.0,3509.6,2.73592386]
[1641435427137,0.00511581,3509.9,3509.6,2.73592386]
[1641435427536,0.00454738,3509.8,3509.6,2.73592386]
[1641435427739,4.738e-05,3509.8,3509.7,8.15]
[1641435427939,6.17,3511.4,3509.7,8.18052273]
[1641435428139,6.17,3511.4,3510.4,0.7119603]
[1641435428338,0.00516319,3510.7,3510.4,0.3]
[1641435428541,0.00516319,3510.7,3510.4,1.86006244]
[1641435428737,0.00459477,3510.6,3510.4,1.86006244]
[1641435429040,6.17,3511.4,3510.4,1.26006244]
[1641435429041,0.00402635,3510.5,3510.4,1.26006244]
[1641435429643,0.00402635,3510.5,3509.8,0.13819997]
[1641435430080,0.00345792,3510.4,3509.8,0.13819997]
[1641435430480,0.0028895,3510.3,3509.8,0.13819997]
[1641435430882,0.00232108,3510.2,3509.9,1.09232412]
[1641435431280,0.00175265,3510.1,3509.9,1.09232412]
[1641435431686,0.00118423,3510.0,3509.9,1.09232412]
[1641435432286,0.00118423,3510.0,3509.9,1.04232412]
[1641435434334,0.00118423,3510.0,3509.9,8.14232412]
[1641435435333,0.00118423,3510.0,3509.9,1.04232412]
[1641435436837,6.83159921,3509.0,3508.9,4.71207318]
[1641435437038,6.83159921,3509.0,3508.9,1.39119758]
[1641435439094,6.83159921,3509.0,3508.9,8.04119758]
[1641435439293,6.83159921,3509.0,3508.9,9.06177326]
[1641435439892,6.83159921,3509.0,3508.9,2.41177326]
[1641435440094,6.83159921,3509.0,3508.9,6.06177326]
[1641435440694,6.83159921,3509.0,3508.9,5.76177326]
[1641435440894,6.83159921,3509.0,3508.9,6.06177326]
[1641435441734,6.83159921,3509.0,3508.9,5.76177326]
[1641435443134,6.83159921,3509.0,3508.9,6.06177326]
[1641435444140,6.83159921,3509.0,3508.9,8.61177326]
[1641435444536,6.83159921,3509.0,3508.9,9.61177326]
[1641435444736,6.83159921,3509.0,3508.9,1.69119758]
[1641435444984,6.83159921,3509.0,3508.9,1.39119758]
[1641435445785,6.83159921,3509.0,3508.9,2.78260737]
[1641435445985,6.83159921,3509.0,3508.9,6.43260737]
[1641435446585,6.83159921,3509.0,3508.9,6.73260737]
[1641435446789,6.83159921,3509.0,3508.9,6.43260737]
[1641435447388,6.83159921,3509.0,3508.9,2.78260737]
[1641435447592,6.83159921,3509.0,3508.9,1.39119758]
[1641435447990,6.83159921,3509.0,3508.9,6.19119758]
[1641435448390,6.83159921,3509.0,3508.9,1.39119758]
[1641435449741,6.83159921,3509.0,3507.5,3.18976332]
[1641435449941,0.345,3508.9,3507.6,1.5675207]
[1641435450139,1.345,3508.9,3507.6,1.57997863]
[1641435450340,1.345,3508.9,3507.6,1.43747863]
[1641435450740,1.345,3508.9,3507.6,0.01245793]
[1641435450942,2.5524,3508.9,3507.7,1.36788946]
[1641435451442,2.5524,3508.9,3507.8,0.01132109]
[1641435451844,9.6034,3508.9,3507.8,0.01132109]
[1641435452046,9.6034,3508.9,3507.2,16.62664644]
[1641435452243,9.6034,3508.9,3507.3,16.5941632]
[1641435452502,9.6034,3508.9,3507.3,16.8941632]
[1641435452701,9.6034,3508.9,3508.1,1.30126656]
[1641435452904,0.345,3508.9,3508.1,1.30126656]
[1641435453105,0.345,3508.9,3508.2,0.00904739]
[1641435453305,6.83159921,3509.0,3508.2,0.00904739]
[1641435453905,6.83159921,3509.0,3508.7,1.32132513]
[1641435454303,6.83159921,3509.0,3508.8,0.00563685]
[1641435454503,6.83159921,3509.0,3508.9,1.1458443]
[1641435454903,6.83159921,3509.0,3508.9,1.15091273]
[1641435455904,6.83159921,3509.0,3508.9,4.80091273]
[1641435457138,6.83159921,3509.0,3508.9,1.15091273]
[1641435458036,6.83159921,3509.0,3508.9,4.90091273]
[1641435458636,6.83159921,3509.0,3508.9,5.20091273]
[1641435459741,0.00118423,3510.0,3509.0,1.01976444]
[1641435459989,6.02118423,3510.7,3509.4,0.07122]
[1641435460185,6.17,3510.8,3509.7,0.03681205]
[1641435460387,0.00170527,3510.3,3509.7,0.03681205]
[1641435460586,0.00170527,3510.3,3509.8,0.00113685]
[1641435460782,6.17,3510.8,3510.2,1.16111042]
[1641435460986,6.17,3510.8,3510.2,1.83232042]
[1641435461283,0.00397896,3510.7,3510.4,1.86482395]
[1641435461485,0.00397896,3510.7,3510.5,0.3]
[1641435461684,0.00341054,3510.6,3510.5,0.3]
[1641435462685,0.00341054,3510.6,3510.5,1.723811]
[1641435463489,0.00341054,3510.6,3510.5,0.3]
[1641435463934,0.00341054,3510.6,3510.3,0.86956379]
[1641435464136,0.00341054,3510.6,3510.4,1.34641108]
[1641435464336,0.00284212,3510.5,3510.4,1.27521108]
[1641435465337,0.00284212,3510.5,3510.4,1.57521108]
[1641435465537,0.00284212,3510.5,3510.4,1.27521108]
[1641435467903,0.00284212,3510.5,3510.4,1.57521108]
[1641435468106,0.00284212,3510.5,3510.4,2.56405277]
[1641435468302,10.00284212,3510.5,3510.4,1.27521108]
[1641435469109,10.00284212,3510.5,3510.4,1.57521108]
[1641435470311,8.87344212,3510.5,3510.4,1.27521108]
[1641435471136,8.87344212,3510.5,3510.4,1.60816301]
[1641435471343,8.87344212,3510.5,3510.4,1.27521108]
[1641435471541,8.87344212,3510.5,3510.4,1.91395883]
[1641435474047,8.87344212,3510.5,3510.4,1.87521108]
[1641435475187,8.87344212,3510.5,3510.4,1.27521108]
[1641435476191,8.88585518,3510.5,3510.4,1.27521108]
[1641435476391,8.88585518,3510.5,3510.4,1.87521108]
[1641435476791,8.88585518,3510.5,3510.4,1.91155306]
[1641435476993,8.88585518,3510.5,3510.4,1.87521108]
[1641435477193,8.88585518,3510.5,3510.4,1.27521108]
[1641435477793,8.87344212,3510.5,3510.4,1.30537065]
[1641435477997,8.87344212,3510.5,3510.4,1.27521108]
[1641435479162,8.87344212,3510.5,3510.4,1.87521108]
[1641435480673,8.87344212,3510.5,3510.3,0.7120979]
[1641435480869,8.87344212,3510.5,3510.2,1.4240976]
[1641435481270,8.87344212,3510.5,3510.3,0.03482616]
[1641435481669,8.87344212,3510.5,3510.4,1.24631437]
[1641435481870,8.87344212,3510.5,3510.4,1.54631437]
[1641435482070,8.87344212,3510.5,3510.4,1.24631437]
[1641435482269,8.87344212,3510.5,3510.4,1.27739607]
[1641435482487,8.87344212,3510.5,3510.4,1.24631437]
[1641435485192,8.87344212,3510.5,3510.3,1.42527055]
[1641435486535,8.87344212,3510.5,3510.4,1.19693681]
[1641435487536,8.87344212,3510.5,3510.4,1.53335993]
[1641435487935,8.87344212,3510.5,3510.4,1.49693681]
[1641435488938,8.87344212,3510.5,3510.3,0.71319625]
[1641435489142,3.37197224,3510.4,3510.3,0.00113685]
[1641435489337,1.345,3510.4,3510.3,0.00113685]
[1641435489538,5.796,3510.4,3509.6,0.00511581]
[1641435489739,5.796,3510.4,3508.8,3.18839257]
[1641435489740,5.796,3510.4,3509.7,0.00454739]
[1641435489982,5.796,3510.4,3509.8,1.49890777]
[1641435490390,1.14329718,3510.2,3509.9,0.00341054]
[1641435490587,1.14329718,3510.2,3509.2,0.03135253]
[1641435490786,0.00113684,3510.1,3509.2,0.0353315]
[1641435490990,0.00113684,3510.1,3509.2,0.00397897]
[1641435491387,0.00113684,3510.1,3509.4,0.7123357]
[1641435491689,0.00113684,3510.1,3509.5,0.0022737]
[1641435492388,0.00113684,3510.1,3509.6,0.7123029]
[1641435492787,0.00113684,3510.1,3509.3,0.03664273]
[1641435492788,0.00113684,3510.1,3509.7,0.00113685]
[1641435493191,0.00113684,3510.1,3509.5,0.34135259]
[1641435493390,0.00113684,3510.1,3509.6,0.00170527]
[1641435493670,0.00113684,3510.1,3509.7,0.7122667]
[1641435493860,0.00113684,3510.1,3509.7,2.230664]
[1641435494059,0.00113684,3510.1,3509.7,2.52412377]
[1641435494261,0.00113684,3510.1,3509.7,3.91689841]
[1641435494859,0.00113684,3510.1,3509.7,3.95212293]
[1641435496661,0.00113684,3510.1,3509.8,0.03691902]
[1641435497064,0.00113684,3510.1,3510.0,0.33845929]
[1641435498696,5.0,3510.4,3510.0,0.33845929]
[1641435498900,5.0,3510.4,3510.2,0.7120615]
[1641435499095,5.0,3510.4,3510.3,1.36224076]
[1641435499499,5.00170527,3510.4,3510.3,1.36224076]
[1641435501836,5.00170527,3510.4,3510.3,1.66224076]
[1641435502135,5.00170527,3510.4,3510.3,1.96224076]
[1641435502334,5.00170527,3510.4,3510.3,1.96188563]
[1641435502736,8.17985539,3510.5,3510.4,5.25]
[1641435502938,8.17985539,3510.5,3510.4,6.54613276]
[1641435503839,8.17985539,3510.5,3510.4,1.29613276]
[1641435505091,8.17985539,3510.5,3510.4,0.03986867]
[1641435505291,8.19274176,3510.5,3510.3,1.32592596]
[1641435506992,8.17985539,3510.5,3510.3,1.65816365]
[1641435507393,8.17985539,3510.5,3510.3,19.32115595]
[1641435507593,8.17985539,3510.5,3510.4,0.03307828]
[1641435507792,8.17985539,3510.5,3510.4,0.33307828]
[1641435508193,8.17985539,3510.5,3510.4,1.36803066]
[1641435508640,8.17985539,3510.5,3510.4,1.06803066]
[1641435508842,8.17985539,3510.5,3510.4,1.36803066]
[1641435509040,8.17985539,3510.5,3510.4,1.66803066]
[1641435509941,8.17985539,3510.5,3510.4,0.33307828]
[1641435510344,8.17985539,3510.5,3510.4,0.63307828]
[1641435511545,8.17985539,3510.5,3510.4,1.97704969]
[1641435512987,8.17985539,3510.5,3510.4,1.67704969]
[1641435513188,8.17985539,3510.5,3510.4,1.64704969]
[1641435513889,8.17985539,3510.5,3510.4,1.94704969]
[1641435515290,8.17985539,3510.5,3510.4,7.54704969]
[1641435515690,8.17985539,3510.5,3510.4,24.12704969]
[1641435516638,8.17985539,3510.5,3510.4,7.54704969]
[1641435517042,8.17985539,3510.5,3510.4,24.12704969]
[1641435517243,8.17985539,3510.5,3510.4,1.94704969]
[1641435519646,8.17985539,3510.5,3510.4,0.60307828]
[1641435523953,8.17985539,3510.5,3510.3,0.7120262]
[1641435524253,8.17985539,3510.5,3509.2,2.16653368]
[1641435524656,8.17985539,3510.5,3509.3,0.00625265]
[1641435524657,1.71235,3510.4,3509.3,0.00625265]
[1641435524852,2.85245,3510.4,3509.3,0.00625265]
[1641435525054,2.85245,3510.4,3509.4,0.03515508]
[1641435525456,2.1401,3510.4,3509.5,0.00511581]
[1641435525657,2.1401,3510.4,3509.6,1.41644089]
[1641435525658,2.85244,3510.4,3509.6,1.41644089]
[1641435525854,1.1401,3510.4,3509.6,1.45515926]
[1641435526052,2.1401,3510.4,3509.7,0.00397896]
[1641435526253,1.1401,3510.4,3509.7,0.64504446]
[1641435526454,1.1401,3510.4,3509.7,0.67953291]
[1641435526652,1.1401,3510.4,3509.8,0.00341054]
[1641435526853,1.2467699,3510.3,3509.8,0.00341054]
[1641435528393,1.1401,3510.4,3509.8,0.00341054]
[1641435528993,8.52485539,3510.5,3509.8,0.00341054]
[1641435529293,8.52485539,3510.5,3509.8,0.98436337]
[1641435529697,1.4949325,3510.4,3509.9,0.00284211]
[1641435529897,0.345,3510.4,3509.9,0.00284211]
[1641435530693,0.345,3510.4,3509.8,0.00341054]
[1641435531140,0.345,3510.4,3510.1,1.2818614]
[1641435531342,0.345,3510.4,3510.2,1.28981689]
[1641435531547,0.345,3510.4,3510.2,1.29095373]
[1641435533447,0.345,3510.4,3510.2,0.00113684]
[1641435534349,0.345,3510.4,3509.9,0.00284211]
[1641435534747,1.42706031,3510.1,3509.6,1.48066896]
[1641435534996,1.42706031,3510.1,3509.8,0.00341054]
[1641435535289,0.345,3510.4,3509.7,0.03652887]
[1641435535692,0.345,3510.4,3509.8,0.00341054]
[1641435536297,0.345,3510.4,3509.7,0.00397896]
[1641435536694,1.345,3510.4,3509.7,0.00397896]
[1641435537796,1.345,3510.4,3509.7,0.64500386]
[1641435537998,1.345,3510.4,3509.8,0.03869162]
[1641435538197,1.345,3510.4,3509.8,0.04210216]
[1641435538398,1.345,3510.4,3509.9,0.00284211]
[1641435538951,5.0,3510.1,3509.9,0.00284211]
[1641435540352,5.0,3510.1,3510.0,0.03167245]
[1641435540551,5.0,3510.1,3510.0,0.33167245]
[1641435540759,5.0,3510.1,3510.0,0.33394614]
[1641435542388,5.0,3510.1,3510.0,0.00227369]
[1641435542591,6.20999259,3510.1,3510.0,0.00227369]
[1641435542796,6.56746478,3510.1,3510.0,0.00227369]
[1641435542995,6.86746478,3510.1,3509.5,0.00511581]
[1641435543195,6.86746478,3510.1,3508.1,3.15548685]
[1641435543196,5.368,3510.0,3508.8,0.00909477]
[1641435543395,0.345,3509.9,3508.4,0.01136847]
[1641435543597,1.13094489,3509.1,3508.6,0.6412196]
[1641435543796,0.345,3509.3,3508.7,0.036633]
[1641435543995,0.345,3509.3,3508.7,0.04629619]
[1641435544196,0.345,3509.3,3508.8,0.00909477]
[1641435544796,1.0661236,3509.0,3508.8,0.00909477]
[1641435544997,1.0661236,3509.0,3508.7,0.00966319]
[1641435545401,0.345,3508.9,3508.6,0.01023162]
[1641435545601,1.05768,3508.9,3508.6,0.01023162]
[1641435545799,1.05768,3508.9,3508.4,0.01136847]
[1641435545999,3.3793,3508.8,3507.6,0.01591585]
[1641435546243,0.345,3508.7,3507.6,0.01591585]
[1641435546443,1.36922086,3508.4,3507.8,1.48232791]
[1641435546646,1.71422086,3508.4,3507.8,1.48232791]
[1641435546847,0.345,3508.4,3507.9,0.01421058]
[1641435548247,0.345,3508.4,3507.8,1.74653849]
[1641435548449,0.345,3508.4,3507.9,0.6413145]
[1641435548450,0.00227369,3508.3,3507.9,0.6413145]
[1641435548650,0.00227369,3508.3,3508.0,0.3]
[1641435548849,0.00170527,3508.2,3507.8,1.74653849]
[1641435549249,0.00113684,3508.1,3507.8,1.74653849]
[1641435549649,0.00113684,3508.1,3507.8,1.78328586]
[1641435550300,0.00113684,3508.1,3507.8,0.3]
[1641435550504,0.00113684,3508.1,3507.6,0.3]
[1641435550704,0.00113684,3508.1,3507.5,0.03960741]
[1641435550899,0.00113684,3508.1,3507.7,0.00113685]
[1641435551100,0.345,3508.4,3507.7,0.00113685]
[1641435551500,0.00113685,3508.3,3507.6,0.00284211]
[1641435551705,0.00113685,3508.3,3507.8,1.43301889]
[1641435551906,0.00113685,3508.3,3507.8,1.47181892]
[1641435552105,0.00113685,3508.3,3507.8,1.67295576]
[1641435552506,0.00170527,3508.2,3507.8,0.23993687]
[1641435552710,0.00170527,3508.2,3507.8,0.00080096]
[1641435552908,0.00113684,3508.1,3507.8,0.00080096]
[1641435553309,0.00227369,3508.3,3507.8,0.00080096]
[1641435553507,1.43461711,3508.0,3507.8,0.00080096]
[1641435554348,0.00170527,3508.2,3507.8,0.00080096]
[1641435554548,0.00170527,3508.2,3507.8,0.07206096]
[1641435554746,0.00113684,3508.1,3507.8,0.07206096]
[1641435555150,0.00227369,3508.3,3507.8,0.07206096]
[1641435555348,0.00227369,3508.3,3508.2,1.07720436]
[1641435555550,0.00170527,3508.2,3507.8,0.07206096]
[1641435555749,0.345,3508.4,3507.8,0.07206096]
[1641435555750,0.00227369,3508.3,3507.9,0.6413009]
[1641435556053,0.00170527,3508.2,3508.0,0.03123833]
[1641435556551,0.00113684,3508.1,3508.0,0.03123833]
[1641435556751,0.00113684,3508.1,3508.0,0.33123833]
[1641435557151,0.00113684,3508.1,3508.0,1.67096721]
[1641435557999,0.00113684,3508.1,3508.0,0.03123833]
[1641435558297,0.00113684,3508.1,3507.8,0.03919854]
[1641435559699,0.00113684,3508.1,3507.9,1.39364601]
[1641435560700,0.00113684,3508.1,3507.8,0.03919854]
[1641435561660,0.345,3508.0,3507.8,0.00080096]
[1641435562160,0.345,3508.0,3506.6,1.2830545]
[1641435562161,1.25710216,3507.9,3506.6,1.2830545]
[1641435562361,1.25710216,3507.9,3506.3,1.45738495]
[1641435562362,0.345,3507.8,3506.3,1.45738495]
[1641435562560,0.345,3507.8,3507.2,0.00397897]
[1641435563059,0.71293,3507.7,3507.2,0.00397897]
[1641435563261,1.05793,3507.7,3507.2,0.00397897]
[1641435563662,2.07087,3507.7,3507.2,0.00397897]
[1641435564896,1.42602,3507.5,3507.2,0.00397897]
[1641435565100,1.058,3507.4,3507.2,0.00397897]
[1641435565501,2.058,3507.4,3507.2,0.00397897]
[1641435566103,8.01372676,3507.3,3507.2,0.00397897]
[1641435566308,3.6,3507.2,3505.7,0.0321972]
[1641435566503,0.71308,3507.0,3505.7,0.0321972]
[1641435566708,0.345,3506.9,3505.8,0.00795793]
[1641435567102,0.345,3506.9,3505.5,0.0096632]
[1641435567510,1.15097917,3506.0,3505.5,1.12050877]
[1641435567707,1.15097917,3506.0,3505.5,1.15131689]
[1641435567905,1.15097917,3506.0,3505.4,0.7122474]
[1641435567906,1.15097917,3506.0,3505.6,0.00909477]
[1641435568307,1.15097917,3506.0,3505.5,0.0096632]
[1641435570153,0.345,3505.9,3505.5,0.0096632]
[1641435570955,0.345,3505.9,3504.2,3.15548685]
[1641435570956,10.2,3505.8,3504.2,3.15548685]
[1641435571156,0.01285086,3504.7,3504.2,3.15548685]
[1641435571357,3.55,3504.5,3503.3,0.7122474]
[1641435571554,0.345,3504.6,3503.3,0.7122474]
[1641435571555,0.0127817,3504.3,3503.3,0.7122474]
[1641435571756,1.5535291,3504.2,3503.7,1.17800263]
[1641435571963,0.345,3504.2,3503.9,3.65771662]
[1641435572157,0.345,3504.2,3503.9,3.69140978]
[1641435572412,0.345,3504.2,3504.0,0.00170527]
[1641435572803,0.345,3504.2,3504.0,0.00295955]
[1641435573003,0.345,3504.2,3504.0,1.12800136]
[1641435573203,0.345,3504.2,3504.1,0.00113684]
[1641435573604,0.00113685,3504.5,3504.1,8.20113684]
[1641435573804,0.00113685,3504.5,3504.1,24.81682518]
[1641435574005,0.00113685,3504.5,3504.2,1.55803159]
[1641435574207,3.9442,3505.7,3504.3,8.15]
[1641435574405,0.345,3505.9,3504.4,2.70093823]
[1641435574608,0.00625266,3505.6,3504.5,0.07132]
[1641435575005,0.00568423,3505.5,3504.5,1.15990371]
[1641435575209,0.00568423,3505.5,3505.0,0.03677546]
[1641435575405,14.60464223,3507.1,3505.0,0.03677546]
[1641435575406,0.00511581,3505.4,3505.0,0.03677546]
[1641435575705,0.00454739,3505.3,3504.9,1.03974865]
[1641435576154,14.60464223,3507.1,3505.0,1.20351979]
[1641435576155,0.00397896,3505.2,3505.0,1.20351979]
[1641435576357,0.345,3505.9,3505.0,1.20351979]
[1641435576755,0.00341054,3505.8,3505.1,0.3]
[1641435576957,0.00341054,3505.8,3505.0,1.20351979]
[1641435577160,0.00284212,3505.7,3505.0,1.24057867]
[1641435577357,0.00284212,3505.7,3505.0,1.20351979]
[1641435577557,5.0,3505.2,3505.0,1.24133275]
[1641435577758,5.0,3505.2,3505.0,2.41851546]
[1641435578158,5.0,3505.2,3505.1,0.3]
[1641435578357,5.0,3505.2,3505.0,1.24133275]
[1641435578358,5.0,3505.2,3505.0,1.20351979]
[1641435578959,5.0,3505.2,3505.0,1.05351979]
[1641435579896,0.345,3505.1,3504.3,0.00113684]
[1641435580098,1.345,3505.1,3504.3,0.00113684]
[1641435580299,1.345,3505.1,3504.0,0.00125428]
[1641435580300,1.345,3505.1,3504.1,0.00625265]
[1641435580497,5.2091,3505.1,3504.1,0.00625265]
[1641435581298,1.10724863,3505.0,3504.4,1.39825954]
[1641435581498,1.10724863,3505.0,3504.1,0.00625265]
[1641435581499,0.345,3504.9,3504.1,0.00625265]
[1641435581699,0.345,3504.9,3504.5,0.00397896]
[1641435581900,0.345,3504.9,3504.1,0.00625265]
[1641435582501,1.345,3504.9,3504.2,1.49639224]
[1641435582900,1.345,3504.9,3504.3,0.00511581]
[1641435583103,0.345,3504.9,3504.3,0.00511581]
[1641435583299,0.345,3504.9,3504.3,0.00630229]
[1641435583749,0.345,3504.9,3504.4,0.00454738]
[1641435586955,2.4536671,3504.9,3504.4,0.00454738]
[1641435587156,1.27699141,3504.6,3504.4,0.00454738]
[1641435587407,2.15006553,3504.5,3504.4,0.00454738]
[1641435587611,10.94506553,3504.5,3504.4,0.00454738]
[1641435587807,11.94506553,3504.5,3504.4,0.00454738]
[1641435588206,3.79506553,3504.5,3504.4,0.00454738]
[1641435588407,3.78523591,3504.5,3504.4,0.00454738]
[1641435588607,3.79359568,3504.5,3504.4,0.00454738]
[1641435589209,1.645,3504.5,3504.4,0.00454738]
[1641435589409,0.71376,3504.0,3503.3,0.7122474]
[1641435589609,0.345,3503.9,3503.3,0.7122474]
[1641435589810,0.345,3503.8,3503.4,0.00568424]
[1641435590409,0.345,3503.8,3503.7,4.57338034]
[1641435590611,3.7011,3504.6,3503.7,4.57338034]
[1641435590809,0.345,3504.7,3503.7,1.12735931]
[1641435591011,0.345,3504.7,3503.8,0.00341054]
[1641435591269,0.00113684,3504.6,3503.8,0.00341054]
[1641435593264,0.00113684,3504.6,3504.4,1.37930291]
[1641435593764,0.00113684,3504.6,3504.4,1.38037106]
[1641435597601,0.00113684,3504.6,3504.4,0.00106815]
[1641435597803,8.495,3504.5,3504.4,0.00106815]
[1641435598009,9.095,3504.5,3504.4,0.00106815]
[1641435598202,10.095,3504.5,3504.4,0.00106815]
[1641435598655,11.33682471,3504.5,3504.4,0.00106815]
[1641435598855,1.645,3504.5,3504.4,0.00106815]
[1641435599060,0.945,3504.5,3504.4,0.00106815]
[1641435599259,4.395,3504.5,3504.4,0.00106815]
[1641435599859,1.345,3504.5,3504.4,1.29373514]
[1641435600161,0.345,3504.5,3504.4,1.29373514]
[1641435601963,0.345,3504.5,3504.4,0.00106815]
[1641435602400,3.595,3504.5,3504.4,0.00106815]
[1641435602801,4.895,3504.5,3504.4,0.00106815]
[1641435603005,1.345,3504.5,3504.4,0.00106815]
[1641435603402,0.645,3504.5,3504.4,0.00106815]
[1641435603602,0.345,3504.5,3504.4,0.00106815]
[1641435605304,2.895,3504.5,3504.4,0.00106815]
[1641435605506,3.195,3504.5,3504.4,0.00106815]
[1641435605707,1.645,3504.5,3504.4,0.00106815]
[1641435605905,1.645,3504.5,3504.2,1.26616355]
[1641435605906,0.345,3504.5,3504.2,1.26616355]
[1641435606352,0.345,3504.5,3503.8,0.00341054]
[1641435606353,0.0122446,3504.3,3503.8,0.00341054]
[1641435606555,0.295,3504.2,3503.8,0.00341054]
[1641435606957,0.71371,3504.1,3503.8,0.00341054]
[1641435607153,0.345,3504.0,3503.8,0.00341054]
[1641435607353,0.345,3504.0,3503.8,1.30984189]
[1641435607755,0.345,3504.0,3503.9,0.00284212]
[1641435608755,0.645,3504.0,3503.9,0.00284212]
[1641435608955,0.345,3504.0,3503.9,0.00284212]
[1641435611314,3.045,3504.0,3503.9,0.00284212]
[1641435611714,4.045,3504.0,3503.9,0.00284212]
[1641435611915,1.345,3504.0,3503.9,0.00284212]